[Event "EIRCC 2019"]
[Site "Tallinn"]
[Date "2019.12.05"]
[Round "2.18"]
[White "Kulaots, Kaido"]
[Black "Belous, Mikhail"]
[Result "1-0"]
[ECO "B90"]
[WhiteElo "2544"]
[BlackElo "2149"]
[Annotator "ChessBase"]
[PlyCount "93"]
[EventDate "2019.12.05"]
[EventType "swiss"]
[EventCountry "EST"]
[SourceTitle "playchess.com"]
[Source "ChessBase"]
[SourceQuality "1"]
[TimeControl "900+10"]

1. e4 {[%emt 0:00:00]} c5 {[%emt 0:00:03]} 2. Nf3 {[%emt 0:00:00]} d6 {[%emt 0:00:08]} 3. d4 {[%emt 0:00:00]} cxd4 {[%emt 0:00:02]} 4. Nxd4 {[%emt 0:00:00]} Nf6 {[%emt 0:00:01]} 5. Nc3 {[%emt 0:00:02]} a6 {[%emt 0:00:02]} 6. Be3 {[%emt 0:00:23]} e5 {[%emt 0:00:07]} 7. Nb3 {[%emt 0:00:34]} Be6 {[%emt 0:00:03]} 8. Be2 {[%emt 0:00:16]} Be7 {[%emt 0:01:15]} 9. h4 {[%emt 0:00:07]} h5 {[%emt 0:00:39]} 10. Nd5 {[%emt 0:01:00]} Bxd5 {[%emt 0:01:34]} 11. exd5 {[%emt 0:00:02]} Nbd7 {[%emt 0:00:08]} 12. Qd2 {[%emt 0:01:39]} Rc8 {[%emt 0:00:17]} 13. O-O-O {[%emt 0:01:51]} Nb6 {[%emt 0:02:05]} 14. Kb1 {[%emt 0:01:14]} Nbxd5 {[%emt 0:01:50]} 15. Bg5 {[%emt 0:00:23]} b5 {[%emt 0:03:55]} 16. Bf3 {[%emt 0:04:08]} e4 {[%emt 0:00:31]} 17. Be2 {[%emt 0:00:57]} g6 {[%emt 0:01:00]} 18. f3 {[%emt 0:01:20]} O-O {[%emt 0:01:05]} 19. g4 {[%emt 0:00:46]} hxg4 {[%emt 0:01:29]} 20. fxg4 {[%emt 0:00:19]} Qc7 {[%emt 0:00:20]} 21. Nd4 {[%emt 0:01:08]} e3 {[%emt 0:00:23]} 22. Bxe3 {[%emt 0:00:02]} Ne4 {[%emt 0:00:01]} 23. Qd3 {[%emt 0:00:01]} Nc5 {[%emt 0:00:39]} 24. Nxb5 {[%emt 0:01:26]} Nxd3 {[%emt 0:01:06]} 25. Nxc7 {[%emt 0:00:02]} Rxc7 {[%emt 0:00:15]} 26. Rxd3 {[%emt 0:00:09]} Nxe3 {[%emt 0:00:02]} 27. Rxe3 {[%emt 0:00:01]} a5 {[%emt 0:00:05]} 28. g5 {[%emt 0:00:20]} Rb8 {[%emt 0:00:11]} 29. Bf3 {[%emt 0:00:29]} Bf8 {[%emt 0:00:09]} 30. Bd5 {[%emt 0:00:28]} Bg7 {[%emt 0:00:08]} 31. b3 {[%emt 0:00:01]} Be5 {[%emt 0:00:24]} 32. h5 {[%emt 0:00:24]} gxh5 {[%emt 0:00:11]} 33. g6 {[%emt 0:00:03]} Kf8 {[%emt 0:00:11]} 34. gxf7 {[%emt 0:00:09]} a4 {[%emt 0:00:09]} 35. Rxh5 {[%emt 0:00:11]} Ke7 {[%emt 0:00:04]} 36. Rexe5+ {[%emt 0:00:24]} dxe5 {[%emt 0:00:01]} 37. Rxe5+ {[%emt 0:00:01]} Kf8 {[%emt 0:00:13]} 38. Rg5 {[%emt 0:00:10]} Ke7 {[%emt 0:00:14]} 39. Rg8 {[%emt 0:00:02]} Rf8 {[%emt 0:00:07]} 40. Kb2 {[%emt 0:00:04]} axb3 {[%emt 0:00:09]} 41. axb3 {[%emt 0:00:04]} Rc5 {[%emt 0:00:11]} 42. c4 {[%emt 0:00:05]} Rcc8 {[%emt 0:00:19]} 43. Kc3 {[%emt 0:00:05]} Kd6 {[%emt 0:00:10]} 44. Kd4 {[%emt 0:00:06]} Rb8 {[%emt 0:00:10]} 45. b4 {[%emt 0:00:03]} Ke7 {[%emt 0:00:11]} 46. b5 {[%emt 0:00:14]} Rbd8 {[%emt 0:00:10]} 47. b6 {[%emt 0:00:18] Ke8 Ke4+} 1-0

[Event "EIRCC 2019"]
[Site "Tallinn"]
[Date "2019.12.05"]
[Round "2.19"]
[White "Peterson, Emery"]
[Black "Saric, Ante"]
[Result "0-1"]
[ECO "D00"]
[WhiteElo "2176"]
[BlackElo "2538"]
[Annotator "ChessBase"]
[PlyCount "78"]
[EventDate "2019.12.05"]
[EventType "swiss"]
[EventCountry "EST"]
[SourceTitle "playchess.com"]
[Source "ChessBase"]
[SourceQuality "1"]
[TimeControl "900+10"]

1. d4 {[%emt 0:00:42]} Nf6 {[%emt 0:00:00]} 2. Nc3 {[%emt 0:00:05]} d5 {[%emt 0:00:00]} 3. e4 {[%emt 0:00:02]} Nxe4 {[%emt 0:00:03]} 4. Nxe4 {[%emt 0:00:03]} dxe4 {[%emt 0:00:01]} 5. Be3 {[%emt 0:00:02]} e6 {[%emt 0:00:10]} 6. f3 {[%emt 0:00:04]} Bd7 {[%emt 0:00:01]} 7. Qd2 {[%emt 0:00:03]} Bc6 {[%emt 0:00:06]} 8. Be2 {[%emt 0:00:04]} Nd7 {[%emt 0:00:15]} 9. O-O-O {[%emt 0:00:05]} Nf6 {[%emt 0:00:09]} 10. Kb1 {[%emt 0:00:09]} Bd6 {[%emt 0:00:59]} 11. c4 {[%emt 0:00:39]} Qd7 {[%emt 0:00:40]} 12. Qc3 {[%emt 0:01:50]} a6 {[%emt 0:00:56]} 13. Nh3 {[%emt 0:00:39]} exf3 {[%emt 0:00:17]} 14. gxf3 {[%emt 0:00:24]} O-O-O {[%emt 0:00:09]} 15. Rhg1 {[%emt 0:00:50]} Rhg8 {[%emt 0:00:26]} 16. b4 {[%emt 0:03:51]} Bxh2 {[%emt 0:00:41]} 17. Rg2 {[%emt 0:00:32]} Bd6 {[%emt 0:00:02]} 18. Nf2 {[%emt 0:00:47]} Nh5 {[%emt 0:01:14]} 19. Nd3 {[%emt 0:02:17]} Ng3 {[%emt 0:00:37]} 20. Rxg3 {[%emt 0:00:27]} Bxg3 {[%emt 0:00:01]} 21. Nc5 {[%emt 0:00:02]} Qe8 {[%emt 0:00:10]} 22. b5 {[%emt 0:00:05]} axb5 {[%emt 0:00:15]} 23. cxb5 {[%emt 0:00:11]} Bd5 {[%emt 0:00:46]} 24. Qa5 {[%emt 0:01:51]} b6 {[%emt 0:03:50]} 25. Qa6+ {[%emt 0:00:52]} Kb8 {[%emt 0:00:02]} 26. Nd3 {[%emt 0:00:03]} Bd6 {[%emt 0:01:18]} 27. Rc1 {[%emt 0:00:26]} Bb7 {[%emt 0:00:24]} 28. Qa4 {[%emt 0:00:02]} g5 {[%emt 0:01:02]} 29. Bd2 {[%emt 0:00:47]} e5 {[%emt 0:00:29]} 30. d5 {[%emt 0:00:13]} Bxd5 {[%emt 0:00:56]} 31. Bb4 {[%emt 0:00:06]} Bb7 {[%emt 0:00:46]} 32. Bxd6 {[%emt 0:00:13]} Rxd6 {[%emt 0:00:02]} 33. Nb4 {[%emt 0:00:01]} Rd4 {[%emt 0:00:10]} 34. Bc4 {[%emt 0:00:23]} Rg6 {[%emt 0:00:29]} 35. Qb3 {[%emt 0:01:09]} Rf6 {[%emt 0:00:22]} 36. a4 {[%emt 0:00:21]} Rxf3 {[%emt 0:00:16]} 37. Qb2 {[%emt 0:00:26]} Qd7 {[%emt 0:00:18]} 38. a5 {[%emt 0:00:12]} Rxc4 {[%emt 0:00:23]} 39. Rxc4 {[%emt 0:00:02]} Qxb5 {[%emt 0:00:14]} 0-1

[Event "EIRCC 2019"]
[Site "Tallinn"]
[Date "2019.12.05"]
[Round "2.20"]
[White "Decosse, Jean-Fabien"]
[Black "Stocek, Jiri"]
[Result "0-1"]
[ECO "E46"]
[WhiteElo "2155"]
[BlackElo "2532"]
[Annotator "ChessBase"]
[PlyCount "76"]
[EventDate "2019.12.05"]
[EventType "swiss"]
[EventCountry "EST"]
[SourceTitle "playchess.com"]
[Source "ChessBase"]
[SourceQuality "1"]
[TimeControl "900+10"]

1. d4 {[%emt 0:02:52]} Nf6 {[%emt 0:00:00]} 2. c4 {[%emt 0:00:01]} e6 {[%emt 0:00:00]} 3. Nc3 {[%emt 0:00:01]} Bb4 {[%emt 0:00:00]} 4. e3 {[%emt 0:00:01]} O-O {[%emt 0:00:17]} 5. Nge2 {[%emt 0:00:02]} Re8 {[%emt 0:00:03]} 6. a3 {[%emt 0:00:01]} Bf8 {[%emt 0:00:03]} 7. d5 {[%emt 0:00:18]} a5 {[%emt 0:00:11]} 8. g3 {[%emt 0:00:03]} Na6 {[%emt 0:00:03]} 9. Bg2 {[%emt 0:00:02]} Nc5 {[%emt 0:00:06]} 10. b3 {[%emt 0:00:16]} c6 {[%emt 0:00:14]} 11. Rb1 {[%emt 0:00:17]} cxd5 {[%emt 0:00:42]} 12. cxd5 {[%emt 0:00:03]} e5 {[%emt 0:00:02]} 13. O-O {[%emt 0:00:21]} d6 {[%emt 0:00:06]} 14. b4 {[%emt 0:00:09]} axb4 {[%emt 0:00:08]} 15. axb4 {[%emt 0:00:01]} Ncd7 {[%emt 0:00:06]} 16. Na4 {[%emt 0:00:49]} h5 {[%emt 0:01:28]} 17. e4 {[%emt 0:00:12]} Be7 {[%emt 0:00:08]} 18. Bd2 {[%emt 0:00:56]} h4 {[%emt 0:00:07]} 19. Qb3 {[%emt 0:00:18]} Nh7 {[%emt 0:00:48]} 20. Rfc1 {[%emt 0:00:47]} Bg5 {[%emt 0:00:54]} 21. f4 {[%emt 0:00:34]} Bh6 {[%emt 0:00:45]} 22. Rc2 {[%emt 0:00:25]} exf4 {[%emt 0:01:25]} 23. Nxf4 {[%emt 0:00:46]} Nhf6 {[%emt 0:00:28]} 24. Ne6 {[%emt 0:01:04]} fxe6 {[%emt 0:00:29]} 25. dxe6 {[%emt 0:00:29]} Kh8 {[%emt 0:01:30]} 26. Bxh6 {[%emt 0:00:22]} Ne5 {[%emt 0:00:26]} 27. Bf4 {[%emt 0:01:02]} Bxe6 {[%emt 0:00:10]} 28. Qa3 {[%emt 0:00:30]} b5 {[%emt 0:00:33]} 29. Rd1 {[%emt 0:00:24]} Rxa4 {[%emt 0:00:36]} 30. Qc3 {[%emt 0:00:11]} Nfg4 {[%emt 0:01:34]} 31. h3 {[%emt 0:00:45]} Qb6+ {[%emt 0:00:11]} 32. Kh1 {[%emt 0:00:51]} Nf2+ {[%emt 0:00:18]} 33. Rxf2 {[%emt 0:00:08]} Qxf2 {[%emt 0:00:04]} 34. Rf1 {[%emt 0:00:12]} Qa7 {[%emt 0:00:07]} 35. Bxe5 {[%emt 0:00:21]} dxe5 {[%emt 0:00:04]} 36. Qxe5 {[%emt 0:00:02]} Kg8 {[%emt 0:00:24]} 37. Qxb5 {[%emt 0:00:07]} Qd7 {[%emt 0:00:15]} 38. Qc5 {[%emt 0:00:21]} Bxh3 {[%emt 0:00:26]} 0-1

[Event "EIRCC 2019"]
[Site "Tallinn"]
[Date "2019.12.05"]
[Round "2.21"]
[White "Belyakov, Bogdan"]
[Black "Lupik, Marina"]
[Result "1-0"]
[ECO "B22"]
[WhiteElo "2520"]
[BlackElo "2147"]
[Annotator "ChessBase"]
[PlyCount "63"]
[EventDate "2019.12.05"]
[EventType "swiss"]
[EventCountry "EST"]
[SourceTitle "playchess.com"]
[Source "ChessBase"]
[SourceQuality "1"]
[TimeControl "900+10"]

1. e4 {[%emt 0:00:00]} c5 {[%emt 0:00:00]} 2. c3 {[%emt 0:00:00]} d6 {[%emt 0:00:03]} 3. d4 {[%emt 0:00:00]} cxd4 {[%emt 0:00:17]} 4. cxd4 {[%emt 0:00:00]} Nf6 {[%emt 0:00:01]} 5. Nc3 {[%emt 0:00:01]} a6 {[%emt 0:00:06]} 6. Nf3 {[%emt 0:00:10]} g6 {[%emt 0:00:09]} 7. h3 {[%emt 0:01:08]} Bg7 {[%emt 0:00:09]} 8. a4 {[%emt 0:00:32]} O-O {[%emt 0:00:41]} 9. Bd3 {[%emt 0:00:08]} Nc6 {[%emt 0:00:06]} 10. O-O {[%emt 0:00:09]} e5 {[%emt 0:01:22]} 11. d5 {[%emt 0:00:39]} Nb4 {[%emt 0:00:04]} 12. Be2 {[%emt 0:00:15]} Bd7 {[%emt 0:00:37]} 13. a5 {[%emt 0:00:34]} b6 {[%emt 0:00:26]} 14. axb6 {[%emt 0:00:02]} Qxb6 {[%emt 0:00:02]} 15. Be3 {[%emt 0:00:03]} Qb7 {[%emt 0:00:12]} 16. Nd2 {[%emt 0:00:11]} Rfc8 {[%emt 0:00:28]} 17. Nc4 {[%emt 0:00:07]} Rd8 {[%emt 0:01:59]} 18. Qb3 {[%emt 0:01:29]} Bf8 {[%emt 0:03:53]} 19. Nb6 {[%emt 0:01:16]} a5 {[%emt 0:00:02]} 20. Nxa8 {[%emt 0:00:04]} Rxa8 {[%emt 0:00:01]} 21. Rfc1 {[%emt 0:00:25]} Be8 {[%emt 0:00:24]} 22. f3 {[%emt 0:00:25]} Nd7 {[%emt 0:01:39]} 23. Bb5 {[%emt 0:00:54]} Nf6 {[%emt 0:00:44]} 24. Bxe8 {[%emt 0:00:09]} Nxe8 {[%emt 0:00:01]} 25. Na2 {[%emt 0:00:17]} Rb8 {[%emt 0:00:32]} 26. Nxb4 {[%emt 0:00:03]} axb4 {[%emt 0:00:01]} 27. Qc4 {[%emt 0:00:35]} Nf6 {[%emt 0:00:53]} 28. Ra7 {[%emt 0:00:06]} Qb5 {[%emt 0:00:08]} 29. Qxb5 {[%emt 0:00:03]} Rxb5 {[%emt 0:00:01]} 30. Rcc7 {[%emt 0:00:14]} b3 {[%emt 0:00:55]} 31. Rxf7 {[%emt 0:00:09]} Ra5 {[%emt 0:00:05]} 32. Rxf8+ {[%emt 0:00:04]} 1-0

[Event "EIRCC 2019"]
[Site "Tallinn"]
[Date "2019.12.05"]
[Round "2.22"]
[White "Lumiste, Rene"]
[Black "Lintchevski, Daniil"]
[Result "0-1"]
[ECO "B18"]
[WhiteElo "2151"]
[BlackElo "2515"]
[Annotator "ChessBase"]
[PlyCount "50"]
[EventDate "2019.12.05"]
[EventType "swiss"]
[EventCountry "EST"]
[SourceTitle "playchess.com"]
[Source "ChessBase"]
[SourceQuality "1"]
[TimeControl "900+10"]

1. e4 {[%emt 0:00:00]} c6 {[%emt 0:00:00]} 2. d4 {[%emt 0:00:00]} d5 {[%emt 0:00:00]} 3. Nc3 {[%emt 0:00:00]} dxe4 {[%emt 0:00:01]} 4. Nxe4 {[%emt 0:00:00]} Bf5 {[%emt 0:00:05]} 5. Ng3 {[%emt 0:00:02]} Bg6 {[%emt 0:00:03]} 6. Nh3 {[%emt 0:00:14]} e6 {[%emt 0:00:03]} 7. Nf4 {[%emt 0:00:03]} Qh4 {[%emt 0:00:03]} 8. c3 {[%emt 0:01:19]} Nd7 {[%emt 0:00:02]} 9. Bc4 {[%emt 0:02:40]} Ngf6 {[%emt 0:01:03]} 10. Nh3 {[%emt 0:06:41]} h6 {[%emt 0:02:52]} 11. Nf4 {[%emt 0:00:32]} Bh7 {[%emt 0:00:03]} 12. O-O {[%emt 0:00:49]} Bd6 {[%emt 0:00:33]} 13. Qf3 {[%emt 0:01:01]} O-O-O {[%emt 0:00:19]} 14. Nd3 {[%emt 0:00:13]} e5 {[%emt 0:01:55]} 15. dxe5 {[%emt 0:00:15]} Qxc4 {[%emt 0:02:15]} 16. Nf5 {[%emt 0:00:02]} Bxe5 {[%emt 0:01:16]} 17. Ne7+ {[%emt 0:01:11]} Kb8 {[%emt 0:00:02]} 18. Nxe5 {[%emt 0:00:09]} Nxe5 {[%emt 0:00:01]} 19. Bf4 {[%emt 0:00:06]} Nfd7 {[%emt 0:00:48]} 20. Qg3 {[%emt 0:00:56]} f6 {[%emt 0:00:08]} 21. Rfd1 {[%emt 0:01:22]} Qf7 {[%emt 0:00:20]} 22. Nxc6+ {[%emt 0:00:05]} bxc6 {[%emt 0:00:05]} 23. Rd6 {[%emt 0:00:02]} Nb6 {[%emt 0:00:59]} 24. Rad1 {[%emt 0:00:47]} Rxd6 {[%emt 0:00:03]} 25. Rxd6 {[%emt 0:00:01]} Kb7 {[%emt 0:00:23]} 0-1

[Event "EIRCC 2019"]
[Site "Tallinn"]
[Date "2019.12.05"]
[Round "2.23"]
[White "Pershin, Denis"]
[Black "Buchcar, Tomas"]
[Result "1-0"]
[ECO "A56"]
[WhiteElo "2509"]
[BlackElo "2137"]
[Annotator "ChessBase"]
[PlyCount "49"]
[EventDate "2019.12.05"]
[EventType "swiss"]
[EventCountry "EST"]
[SourceTitle "playchess.com"]
[Source "ChessBase"]
[SourceQuality "1"]
[TimeControl "900+10"]

1. d4 {[%emt 0:00:00]} Nf6 {[%emt 0:00:00]} 2. c4 {[%emt 0:00:00]} c5 {[%emt 0:00:00]} 3. d5 {[%emt 0:00:00]} e5 {[%emt 0:00:00]} 4. Nc3 {[%emt 0:00:00]} d6 {[%emt 0:00:00]} 5. e4 {[%emt 0:00:00]} Be7 {[%emt 0:00:00]} 6. Bd3 {[%emt 0:00:06]} Nbd7 {[%emt 0:00:05]} 7. Nge2 {[%emt 0:00:02]} h6 {[%emt 0:00:18]} 8. f3 {[%emt 0:00:26]} Nf8 {[%emt 0:00:16]} 9. Ng3 {[%emt 0:00:05]} Ng6 {[%emt 0:00:00]} 10. Nf5 {[%emt 0:00:10]} O-O {[%emt 0:00:00]} 11. g3 {[%emt 0:00:14]} Re8 {[%emt 0:00:31]} 12. Be3 {[%emt 0:00:14]} Bf8 {[%emt 0:00:07]} 13. Kf2 {[%emt 0:00:35]} Ne7 {[%emt 0:00:20]} 14. g4 {[%emt 0:00:31]} Nxf5 {[%emt 0:00:15]} 15. exf5 {[%emt 0:01:38]} Be7 {[%emt 0:01:40]} 16. Qd2 {[%emt 0:00:30]} Nh7 {[%emt 0:00:24]} 17. Rag1 {[%emt 0:00:18]} Bg5 {[%emt 0:00:06]} 18. Bxg5 {[%emt 0:01:12]} Qxg5 {[%emt 0:03:33]} 19. Qxg5 {[%emt 0:00:04]} hxg5 {[%emt 0:00:02]} 20. Ne4 {[%emt 0:00:16]} Rd8 {[%emt 0:00:49]} 21. h4 {[%emt 0:00:02]} gxh4 {[%emt 0:00:47]} 22. Rxh4 {[%emt 0:00:02]} Nf6 {[%emt 0:01:45]} 23. Nxf6+ {[%emt 0:00:40]} gxf6 {[%emt 0:00:11]} 24. g5 {[%emt 0:00:02]} Kg7 {[%emt 0:00:14]} 25. g6 {[%emt 0:00:22]} 1-0

[Event "EIRCC 2019"]
[Site "Tallinn"]
[Date "2019.12.05"]
[Round "2.24"]
[White "Belenkaya, Dina"]
[Black "Sebenik, Matej"]
[Result "0-1"]
[ECO "C00"]
[WhiteElo "2147"]
[BlackElo "2504"]
[Annotator "ChessBase"]
[PlyCount "92"]
[EventDate "2019.12.05"]
[EventType "swiss"]
[EventCountry "EST"]
[SourceTitle "playchess.com"]
[Source "ChessBase"]
[SourceQuality "1"]
[TimeControl "900+10"]

1. e4 {[%emt 0:00:00]} e6 {[%emt 0:00:00]} 2. Qe2 {[%emt 0:00:00]} c5 {[%emt 0:00:00]} 3. g3 {[%emt 0:00:07]} Nc6 {[%emt 0:00:29]} 4. Nf3 {[%emt 0:00:02]} d6 {[%emt 0:00:09]} 5. Bg2 {[%emt 0:00:19]} Be7 {[%emt 0:00:44]} 6. O-O {[%emt 0:00:39]} Bf6 {[%emt 0:00:04]} 7. c3 {[%emt 0:01:17]} Nge7 {[%emt 0:00:07]} 8. d4 {[%emt 0:05:59]} cxd4 {[%emt 0:00:37]} 9. cxd4 {[%emt 0:00:01]} Nxd4 {[%emt 0:00:41]} 10. Nxd4 {[%emt 0:00:02]} Bxd4 {[%emt 0:00:01]} 11. Rd1 {[%emt 0:00:02]} e5 {[%emt 0:00:13]} 12. Nc3 {[%emt 0:00:31]} a6 {[%emt 0:00:20]} 13. Be3 {[%emt 0:02:19]} Nc6 {[%emt 0:00:09]} 14. Qd2 {[%emt 0:00:19]} Bg4 {[%emt 0:00:20]} 15. f3 {[%emt 0:00:39]} Be6 {[%emt 0:00:02]} 16. f4 {[%emt 0:00:18]} f6 {[%emt 0:02:09]} 17. h3 {[%emt 0:02:11]} Qb6 {[%emt 0:00:51]} 18. Bxd4 {[%emt 0:00:01]} Qxd4+ {[%emt 0:00:01]} 19. Qf2 {[%emt 0:00:19]} Qxf2+ {[%emt 0:00:01]} 20. Kxf2 {[%emt 0:00:01]} Ke7 {[%emt 0:00:13]} 21. Rd2 {[%emt 0:00:14]} Rac8 {[%emt 0:00:11]} 22. Rad1 {[%emt 0:00:42]} Rhd8 {[%emt 0:00:19]} 23. Bf1 {[%emt 0:00:21]} Nd4 {[%emt 0:00:10]} 24. g4 {[%emt 0:00:39]} g6 {[%emt 0:00:44]} 25. Ke3 {[%emt 0:00:20]} b5 {[%emt 0:00:08]} 26. f5 {[%emt 0:00:11]} Bf7 {[%emt 0:00:05]} 27. h4 {[%emt 0:00:05]} b4 {[%emt 0:00:34]} 28. Nb1 {[%emt 0:00:45]} a5 {[%emt 0:00:17]} 29. a3 {[%emt 0:00:03]} gxf5 {[%emt 0:00:01]} 30. gxf5 {[%emt 0:00:03]} Bh5 {[%emt 0:00:02]} 31. Rxd4 {[%emt 0:00:22]} exd4+ {[%emt 0:00:02]} 32. Rxd4 {[%emt 0:00:01]} Rc1 {[%emt 0:01:33]} 33. Nd2 {[%emt 0:00:15]} bxa3 {[%emt 0:00:06]} 34. bxa3 {[%emt 0:00:01]} Rc3+ {[%emt 0:00:02]} 35. Rd3 {[%emt 0:00:00]} Rdc8 {[%emt 0:00:13]} 36. Nb3 {[%emt 0:00:07]} Rxd3+ {[%emt 0:00:25]} 37. Bxd3 {[%emt 0:00:03]} a4 {[%emt 0:01:10]} 38. Nd4 {[%emt 0:00:44]} Rc3 {[%emt 0:00:07]} 39. Nc2 {[%emt 0:00:08]} Bf7 {[%emt 0:01:01]} 40. Kd4 {[%emt 0:00:37]} Rb3 {[%emt 0:00:02]} 41. Nb4 {[%emt 0:00:51]} Rxa3 {[%emt 0:00:11]} 42. Nc6+ {[%emt 0:00:01]} Kf8 {[%emt 0:00:08]} 43. Nd8 {[%emt 0:00:07]} Ra1 {[%emt 0:00:19]} 44. Nb7 {[%emt 0:00:16]} a3 {[%emt 0:00:13]} 45. Nxd6 {[%emt 0:00:04]} a2 {[%emt 0:00:07]} 46. Nxf7 {[%emt 0:00:12]} Rd1 {[%emt 0:00:05]} 0-1

[Event "EIRCC 2019"]
[Site "Tallinn"]
[Date "2019.12.05"]
[Round "2.26"]
[White "Semjonovs, Ilja"]
[Black "Kanep, Meelis"]
[Result "0-1"]
[ECO "A48"]
[WhiteElo "2141"]
[BlackElo "2466"]
[Annotator "ChessBase"]
[PlyCount "104"]
[EventDate "2019.12.05"]
[EventType "swiss"]
[EventCountry "EST"]
[SourceTitle "playchess.com"]
[Source "ChessBase"]
[SourceQuality "1"]
[TimeControl "900+10"]

1. d4 {[%emt 0:00:00]} Nf6 {[%emt 0:00:00]} 2. Nf3 {[%emt 0:00:00]} g6 {[%emt 0:00:00]} 3. Bg5 {[%emt 0:00:00]} Bg7 {[%emt 0:00:04]} 4. Bxf6 {[%emt 0:00:00]} Bxf6 {[%emt 0:00:05]} 5. e3 {[%emt 0:00:00]} O-O {[%emt 0:00:34]} 6. Bd3 {[%emt 0:00:01]} d6 {[%emt 0:00:14]} 7. h4 {[%emt 0:00:21]} e5 {[%emt 0:00:16]} 8. c3 {[%emt 0:00:12]} Qe7 {[%emt 0:00:21]} 9. dxe5 {[%emt 0:00:13]} dxe5 {[%emt 0:00:02]} 10. Nbd2 {[%emt 0:00:11]} Nd7 {[%emt 0:01:01]} 11. Ne4 {[%emt 0:00:45]} Nc5 {[%emt 0:00:06]} 12. Nxc5 {[%emt 0:00:14]} Qxc5 {[%emt 0:00:02]} 13. Qc2 {[%emt 0:00:22]} h5 {[%emt 0:01:42]} 14. O-O-O {[%emt 0:00:51]} Bg7 {[%emt 0:00:02]} 15. Ng5 {[%emt 0:00:20]} a5 {[%emt 0:00:44]} 16. Kb1 {[%emt 0:02:21]} a4 {[%emt 0:02:20]} 17. a3 {[%emt 0:00:08]} Qe7 {[%emt 0:00:11]} 18. f3 {[%emt 0:05:58]} Bh6 {[%emt 0:00:13]} 19. g4 {[%emt 0:00:40]} hxg4 {[%emt 0:00:08]} 20. fxg4 {[%emt 0:00:01]} Bxg4 {[%emt 0:02:52]} 21. Rdg1 {[%emt 0:00:40]} Bh5 {[%emt 0:00:09]} 22. Nxf7 {[%emt 0:02:41]} Rxf7 {[%emt 0:00:30]} 23. Bxg6 {[%emt 0:00:01]} Bxg6 {[%emt 0:00:33]} 24. Rxg6+ {[%emt 0:00:01]} Bg7 {[%emt 0:00:36]} 25. h5 {[%emt 0:00:02]} Kh8 {[%emt 0:00:16]} 26. h6 {[%emt 0:00:31]} Bf6 {[%emt 0:00:07]} 27. Rhg1 {[%emt 0:01:21]} Qf8 {[%emt 0:03:36]} 28. Qe4 {[%emt 0:01:26]} Re8 {[%emt 0:00:20]} 29. Rg8+ {[%emt 0:00:10]} Qxg8 {[%emt 0:00:04]} 30. Rxg8+ {[%emt 0:00:02]} Rxg8 {[%emt 0:00:26]} 31. Qxb7 {[%emt 0:00:01]} Kh7 {[%emt 0:01:36]} 32. Qe4+ {[%emt 0:00:14]} Kxh6 {[%emt 0:00:01]} 33. Qxa4 {[%emt 0:00:02]} Rg1+ {[%emt 0:00:53]} 34. Ka2 {[%emt 0:00:02]} Bg5 {[%emt 0:00:07]} 35. Qc6+ {[%emt 0:00:16]} Kg7 {[%emt 0:00:20]} 36. e4 {[%emt 0:00:13]} Re1 {[%emt 0:00:08]} 37. b4 {[%emt 0:00:07]} Bd2 {[%emt 0:00:14]} 38. Kb3 {[%emt 0:00:30]} Re3 {[%emt 0:00:03]} 39. Qd5 {[%emt 0:00:05]} Bxc3 {[%emt 0:00:04]} 40. Kc4 {[%emt 0:00:09]} Bd4 {[%emt 0:00:06]} 41. Qa5 {[%emt 0:00:13]} c6 {[%emt 0:00:19]} 42. b5 {[%emt 0:00:01]} Rc3+ {[%emt 0:00:11]} 43. Kb4 {[%emt 0:00:01]} Ra7 {[%emt 0:00:16]} 44. Qxa7+ {[%emt 0:00:19]} Bxa7 {[%emt 0:00:01]} 45. Kxc3 {[%emt 0:00:01]} cxb5 {[%emt 0:00:01]} 46. Kb4 {[%emt 0:00:05]} Kf6 {[%emt 0:00:03]} 47. Kxb5 {[%emt 0:00:01]} Kg5 {[%emt 0:00:01]} 48. Kc4 {[%emt 0:00:01]} Kf4 {[%emt 0:00:02]} 49. Kd5 {[%emt 0:00:01]} Bb6 {[%emt 0:00:03]} 50. Kc6 {[%emt 0:00:15]} Ba5 {[%emt 0:00:03]} 51. Kd5 {[%emt 0:00:02]} Bd2 {[%emt 0:00:03]} 52. a4 {[%emt 0:00:01]} Be1 {[%emt 0:00:02]} 0-1

[Event "EIRCC 2019"]
[Site "Tallinn"]
[Date "2019.12.05"]
[Round "2.27"]
[White "Loginov, Valery A"]
[Black "Ladopoulos, Dimitrios"]
[Result "1-0"]
[ECO "E68"]
[WhiteElo "2461"]
[BlackElo "2128"]
[Annotator "ChessBase"]
[PlyCount "73"]
[EventDate "2019.12.05"]
[EventType "swiss"]
[EventCountry "EST"]
[SourceTitle "playchess.com"]
[Source "ChessBase"]
[SourceQuality "1"]
[TimeControl "900+10"]

1. Nf3 {[%emt 0:00:00]} Nf6 {[%emt 0:00:46]} 2. g3 {[%emt 0:00:00]} g6 {[%emt 0:00:01]} 3. c4 {[%emt 0:00:00]} Bg7 {[%emt 0:00:03]} 4. Nc3 {[%emt 0:00:07]} O-O {[%emt 0:00:05]} 5. d4 {[%emt 0:00:03]} d6 {[%emt 0:00:03]} 6. Bg2 {[%emt 0:00:02]} Nbd7 {[%emt 0:00:02]} 7. O-O {[%emt 0:00:06]} e5 {[%emt 0:00:02]} 8. e4 {[%emt 0:00:04]} c6 {[%emt 0:00:01]} 9. Rb1 {[%emt 0:00:06]} Re8 {[%emt 0:00:55]} 10. d5 {[%emt 0:00:05]} Nc5 {[%emt 0:00:09]} 11. Ne1 {[%emt 0:00:18]} a5 {[%emt 0:00:56]} 12. Nd3 {[%emt 0:00:26]} Nxd3 {[%emt 0:01:46]} 13. Qxd3 {[%emt 0:00:03]} c5 {[%emt 0:00:02]} 14. b3 {[%emt 0:00:20]} Bd7 {[%emt 0:01:12]} 15. a3 {[%emt 0:00:04]} b6 {[%emt 0:01:36]} 16. b4 {[%emt 0:00:07]} Qc7 {[%emt 0:01:10]} 17. bxc5 {[%emt 0:00:24]} bxc5 {[%emt 0:00:02]} 18. Bd2 {[%emt 0:00:07]} Reb8 {[%emt 0:00:10]} 19. Rxb8+ {[%emt 0:00:13]} Rxb8 {[%emt 0:00:03]} 20. Rb1 {[%emt 0:00:02]} h5 {[%emt 0:02:36]} 21. Qc2 {[%emt 0:00:45]} h4 {[%emt 0:00:30]} 22. Nb5 {[%emt 0:00:34]} Bxb5 {[%emt 0:00:09]} 23. Rxb5 {[%emt 0:00:04]} hxg3 {[%emt 0:00:54]} 24. hxg3 {[%emt 0:00:02]} Rxb5 {[%emt 0:02:43]} 25. cxb5 {[%emt 0:00:03]} c4 {[%emt 0:01:26]} 26. a4 {[%emt 0:02:08]} Qc5 {[%emt 0:00:35]} 27. Bf3 {[%emt 0:00:38]} Qa3 {[%emt 0:00:24]} 28. Kg2 {[%emt 0:00:09]} Qb3 {[%emt 0:00:14]} 29. Bd1 {[%emt 0:02:57]} Nxe4 {[%emt 0:00:31]} 30. Qxb3 {[%emt 0:00:29]} cxb3 {[%emt 0:00:02]} 31. Bxb3 {[%emt 0:00:10]} Nc5 {[%emt 0:00:29]} 32. Bxa5 {[%emt 0:01:10]} Nxb3 {[%emt 0:00:16]} 33. Bb4 {[%emt 0:00:02]} Bf6 {[%emt 0:00:09]} 34. b6 {[%emt 0:01:43]} Bd8 {[%emt 0:00:03]} 35. a5 {[%emt 0:00:02]} Nc5 {[%emt 0:00:20]} 36. Bxc5 {[%emt 0:00:05]} dxc5 {[%emt 0:00:01]} 37. d6 {[%emt 0:00:02]} 1-0